bitfinex/quotes_BTCUSD_20240826
["timestamp","ask_amount","ask_price","bid_price","bid_amount"]
[1724708491444,0.02006401,63124.0,63123.0,1.30157203]
[1724708491651,0.00906401,63124.0,63123.0,1.30157203]
[1724708492165,0.01006401,63124.0,63123.0,1.30457203]
[1724708492980,0.00686641,63167.0,63123.0,1.30457203]
[1724708492981,0.00907501,63151.0,63139.0,0.001]
[1724708493161,0.00907501,63151.0,63139.0,1.19548001]
[1724708493356,0.00907501,63151.0,63139.0,1.24397081]
[1724708494317,0.01706401,63140.0,63139.0,1.24397081]
[1724708494519,0.01706401,63140.0,63139.0,1.29978123]
[1724708494796,0.00907501,63151.0,63139.0,1.29978123]
[1724708494797,0.00907501,63151.0,63140.0,0.614234]
[1724708495024,0.00907501,63151.0,63140.0,0.81890281]
[1724708495223,0.00907501,63151.0,63140.0,1.45241481]
[1724708496186,0.00907501,63151.0,63140.0,1.13665881]
[1724708496410,0.4760324,63141.0,63140.0,0.17125627]
[1724708496635,0.4770324,63141.0,63140.0,0.03615627]
[1724708496834,0.7937834,63141.0,63140.0,0.004]
[1724708497217,0.475141,63139.0,63138.0,0.001]
[1724708497419,0.6354084,63141.0,63140.0,0.011]
[1724708497618,0.475149,63138.0,63137.0,0.001]
[1724708497817,0.475216,63129.0,63128.0,0.05011396]
[1724708498216,0.475216,63129.0,63128.0,0.001]
[1724708498600,0.31681,63130.0,63116.0,0.04960695]
[1724708498601,0.1283,63128.0,63122.0,0.001]
[1724708498821,0.475261,63123.0,63122.0,0.001]
[1724708499020,0.316778,63136.0,63122.0,0.001]
[1724708499021,0.42577801,63151.0,63136.0,0.1073]
[1724708499286,0.42577801,63151.0,63140.0,0.001]
[1724708499287,0.3246604,63141.0,63140.0,0.001]
[1724708499492,0.0079064,63141.0,63140.0,0.001]
[1724708499844,0.4830324,63141.0,63140.0,0.001]
[1724708500329,0.4970324,63141.0,63140.0,0.001]
[1724708500529,0.4900324,63141.0,63140.0,0.001]
[1724708500728,0.4760324,63141.0,63140.0,0.017484]
[1724708501218,0.4800324,63141.0,63140.0,0.017484]
[1724708501507,0.4870324,63141.0,63140.0,0.018484]
[1724708501722,0.1702814,63141.0,63140.0,0.018484]
[1724708502042,0.1762814,63141.0,63140.0,0.019484]
[1724708502335,0.1632814,63141.0,63140.0,0.017484]
[1724708502447,0.1592814,63141.0,63140.0,0.017484]
[1724708502887,0.1592814,63141.0,63140.0,0.422262]
[1724708502888,0.0039064,63141.0,63140.0,0.422262]
[1724708503083,0.0039064,63141.0,63140.0,1.26252614]
[1724708503351,0.0009064,63141.0,63140.0,1.26252614]
[1724708503549,0.0009064,63141.0,63140.0,1.57928214]
[1724708503754,0.0009064,63141.0,63140.0,1.58228214]
[1724708504189,0.0009064,63141.0,63140.0,1.57928214]
[1724708504571,0.0009064,63141.0,63140.0,1.58328214]
[1724708504572,0.0019064,63141.0,63140.0,1.58328214]
[1724708505467,0.0019064,63141.0,63140.0,1.26752614]
[1724708505671,0.0009064,63141.0,63140.0,1.26252614]
[1724708505970,0.0029064,63141.0,63140.0,1.27652614]
[1724708506326,0.0029064,63141.0,63140.0,1.27252614]
[1724708506541,0.0019064,63141.0,63140.0,1.27252614]
[1724708506909,0.0019064,63141.0,63140.0,1.26652614]
[1724708507476,0.0009064,63141.0,63140.0,1.26252614]
[1724708508065,0.0019064,63141.0,63140.0,1.27252614]
[1724708508432,0.0009064,63141.0,63140.0,1.26252614]
[1724708508646,0.00906401,63173.0,63172.0,0.1322]
[1724708508815,0.00906401,63173.0,63172.0,0.715392]
[1724708509061,0.00906401,63173.0,63172.0,0.77157513]
[1724708509330,0.00906401,63173.0,63172.0,1.24434814]
[1724708509583,0.00906401,63173.0,63172.0,1.18816501]
[1724708509827,0.00906401,63173.0,63172.0,0.001]
[1724708511467,0.00906401,63173.0,63172.0,0.015]
[1724708511709,0.00906401,63173.0,63172.0,0.001]
[1724708512176,0.00906401,63173.0,63172.0,0.005]
[1724708512678,0.00906401,63173.0,63172.0,0.165297]
[1724708514352,0.00906401,63173.0,63172.0,0.163297]
[1724708514586,0.00906401,63173.0,63172.0,0.167297]
[1724708514825,0.00906401,63173.0,63172.0,0.163297]
[1724708515315,0.01006401,63173.0,63172.0,0.169297]
[1724708515592,0.00906401,63173.0,63172.0,0.163297]
[1724708515830,0.00906401,63173.0,63172.0,0.167297]
[1724708516045,0.01006401,63173.0,63172.0,0.173297]
[1724708516218,0.01006401,63173.0,63172.0,0.489892]
[1724708517001,0.01006401,63173.0,63172.0,1.045987]
[1724708517470,0.01006401,63173.0,63172.0,0.729392]
[1724708517945,0.01006401,63173.0,63172.0,1.045987]
[1724708518192,0.01006401,63173.0,63172.0,1.20216501]
[1724708518426,0.01006401,63173.0,63172.0,1.51876001]
[1724708518654,0.01006401,63173.0,63172.0,1.20216501]
[1724708518880,0.01006401,63173.0,63172.0,1.51876001]
[1724708519160,0.01006401,63173.0,63172.0,1.20216501]
[1724708519614,0.01006401,63173.0,63172.0,1.24246051]
[1724708520493,0.01006401,63173.0,63172.0,1.20216501]
[1724708522411,0.01006401,63173.0,63172.0,1.51876001]
[1724708522620,0.01006401,63173.0,63172.0,1.20216501]
[1724708523640,0.01006401,63173.0,63172.0,1.20900516]
[1724708525182,0.01006401,63173.0,63172.0,1.52560016]
[1724708526902,0.01006401,63173.0,63172.0,1.20900516]
[1724708527311,0.01006401,63173.0,63172.0,1.52560016]
[1724708536361,0.00906401,63173.0,63172.0,1.51760016]
[1724708536763,0.01006401,63173.0,63172.0,1.52960016]
[1724708537632,0.01006401,63173.0,63172.0,1.52360016]
[1724708537940,0.01006401,63173.0,63172.0,1.80215593]
[1724708538066,0.01006401,63173.0,63172.0,1.85245143]
[1724708538266,0.01006401,63173.0,63172.0,1.91215593]
[1724708538469,0.01006401,63173.0,63172.0,2.22875093]
[1724708540011,0.00906401,63173.0,63172.0,2.21675093]
[1724708540873,0.00906401,63173.0,63172.0,2.20675093]
[1724708541377,0.00906401,63173.0,63172.0,2.22075093]
[1724708541800,0.00906401,63173.0,63172.0,2.22175093]
[1724708542008,0.00906401,63173.0,63172.0,2.23575093]
[1724708542351,0.00906401,63173.0,63172.0,2.22175093]
[1724708542853,0.00906401,63173.0,63172.0,2.23575093]
[1724708544393,0.00906401,63173.0,63172.0,2.25875093]
[1724708544755,0.00906401,63173.0,63172.0,2.29904643]
[1724708545865,0.00906401,63173.0,63172.0,2.28504643]
[1724708546282,0.00906401,63173.0,63172.0,2.29904643]
[1724708547745,0.00906401,63173.0,63172.0,2.28504643]
[1724708547919,0.00906401,63173.0,63172.0,2.29904643]
[1724708548166,0.00906401,63173.0,63172.0,2.29220628]
[1724708548367,0.00906401,63173.0,63172.0,2.25191078]
[1724708555716,0.00906401,63173.0,63172.0,2.22391078]
[1724708555915,0.00906401,63173.0,63172.0,2.25191078]
[1724708563964,0.00906401,63173.0,63172.0,2.08428422]
[1724708572019,0.00906401,63173.0,63172.0,2.40087922]
[1724708573556,0.00906401,63173.0,63172.0,2.44828995]
[1724708575748,0.00906401,63173.0,63172.0,2.40087922]
[1724708577122,0.00906401,63173.0,63172.0,2.59146289]
[1724708577366,0.00906401,63173.0,63172.0,2.68171919]
[1724708577547,0.00906401,63173.0,63172.0,2.68158289]
[1724708578593,0.00906401,63173.0,63172.0,2.61046679]
[1724708579536,0.00906401,63173.0,63172.0,2.70528825]
[1724708581690,0.00906401,63173.0,63172.0,2.61046679]
[1724708582710,0.00906401,63173.0,63172.0,2.72899362]
[1724708582914,0.0004,63179.0,63178.0,1.426542]
[1724708583115,0.0004,63179.0,63178.0,1.81664922]
[1724708583641,0.0004,63179.0,63178.0,1.93950337]
[1724708584172,0.0004,63179.0,63178.0,1.95350337]
[1724708584630,0.0004,63179.0,63178.0,2.04849181]
[1724708584807,0.0004,63179.0,63178.0,1.95350337]
[1724708585008,0.0004,63179.0,63178.0,1.96750337]
[1724708587302,0.0004,63179.0,63178.0,1.85099022]
[1724708587503,0.0004,63179.0,63178.0,1.96801517]
[1724708588569,0.0004,63179.0,63178.0,1.97460281]
[1724708591094,0.0013053,63179.0,63178.0,1.97460281]
[1724708592418,0.0013053,63179.0,63178.0,1.97465231]
[1724708592616,0.0013053,63179.0,63178.0,2.04590152]
[1724708592790,0.0013053,63179.0,63178.0,2.06965446]
[1724708600491,0.0013053,63179.0,63178.0,1.97465231]
[1724708600492,0.00111478,63179.0,63178.0,1.97465231]
[1724708601092,0.00111478,63179.0,63178.0,1.97443687]
[1724708602241,0.00111478,63179.0,63178.0,1.97437949]
[1724708607217,0.00111478,63179.0,63178.0,1.97440868]
[1724708610578,0.00111478,63179.0,63178.0,2.06938753]
[1724708611892,0.00111478,63179.0,63178.0,2.06940377]
[1724708613124,0.00111478,63179.0,63178.0,2.06840377]
[1724708616627,0.00111478,63179.0,63178.0,1.85657786]
[1724708616911,0.00111478,63179.0,63178.0,2.06864339]
[1724708618525,0.00111478,63179.0,63178.0,1.97364497]
[1724708622580,0.00111478,63179.0,63178.0,2.092393]
[1724708626484,0.00111478,63179.0,63178.0,2.21005113]
[1724708626684,0.00111478,63179.0,63178.0,2.21087513]
[1724708626918,0.00111478,63179.0,63178.0,2.09380802]
[1724708627840,0.00111478,63179.0,63178.0,2.29155335]
[1724708630627,0.00111478,63179.0,63178.0,2.29255335]
[1724708634211,0.00111478,63179.0,63178.0,2.38281446]
[1724708636746,0.00111478,63179.0,63178.0,2.29255335]
[1724708640584,1e-08,63179.0,63178.0,2.27187933]
[1724708640785,1e-08,63179.0,63178.0,2.61034706]
[1724708641023,0.0009064,63186.0,63185.0,1.425385]
[1724708641231,0.0009064,63186.0,63185.0,1.86402449]
[1724708641433,0.0009064,63186.0,63185.0,2.00987505]
[1724708641603,0.0009064,63186.0,63185.0,2.00976086]
[1724708641926,0.0009064,63186.0,63185.0,1.93846465]
[1724708642060,0.0009064,63186.0,63185.0,1.95246465]
[1724708642260,0.0009064,63186.0,63185.0,2.0237477]
[1724708642581,0.0009064,63186.0,63185.0,2.0097477]
[1724708642930,0.0009064,63186.0,63185.0,2.0237477]
[1724708643878,0.0009064,63186.0,63185.0,2.0377477]
[1724708644469,0.0009064,63186.0,63185.0,2.03739414]
[1724708645073,0.0009064,63186.0,63185.0,1.91576589]
[1724708646126,0.0009064,63186.0,63185.0,1.92257848]
[1724708647342,0.0009064,63186.0,63185.0,1.85130481]
[1724708648158,0.0009064,63186.0,63185.0,1.92257848]
[1724708649202,0.0009064,63186.0,63185.0,1.92256619]
[1724708650170,0.0009064,63186.0,63185.0,1.85130481]
[1724708650574,0.0009064,63186.0,63185.0,1.89881086]
[1724708650779,0.0009064,63186.0,63185.0,1.85130481]
[1724708651379,0.0009064,63186.0,63185.0,1.89881086]
[1724708652812,0.0009064,63186.0,63185.0,1.85130481]
[1724708653157,0.0009064,63186.0,63185.0,1.92256619]
[1724708653992,0.0009064,63186.0,63185.0,1.85130481]
[1724708656240,0.0007159,63186.0,63185.0,1.85130481]
[1724708657971,0.0007159,63186.0,63185.0,1.7403756]
[1724708658178,0.0007159,63186.0,63185.0,1.85130481]
[1724708664296,0.0007159,63186.0,63185.0,1.85030481]
[1724708664498,0.0007159,63186.0,63185.0,1.85130481]
[1724708666078,0.0007159,63186.0,63185.0,1.85030481]
[1724708666285,0.0007159,63186.0,63185.0,1.85130481]
[1724708667583,0.0007159,63186.0,63185.0,1.85030481]
[1724708667787,0.0007159,63186.0,63185.0,1.85130481]
[1724708671133,0.0007159,63186.0,63185.0,1.92255635]
[1724708673356,0.0007159,63186.0,63185.0,1.92338035]
[1724708674935,0.0007159,63186.0,63185.0,1.81245114]
[1724708675142,0.0007159,63186.0,63185.0,1.92338035]
[1724708675551,0.0007159,63186.0,63185.0,2.04518501]
[1724708677669,0.0007159,63186.0,63185.0,1.97393347]
[1724708682546,0.0007159,63186.0,63185.0,2.06893553]
[1724708682947,0.0007159,63186.0,63185.0,1.97293347]
[1724708683187,0.0007159,63186.0,63185.0,1.85112881]
[1724708683356,0.0007159,63186.0,63185.0,1.97262533]
[1724708684170,0.0007159,63186.0,63185.0,1.94962533]
[1724708684629,0.0007159,63186.0,63183.0,0.11880463]
[1724708684630,0.1225,63185.0,63183.0,0.16633059]
[1724708684914,0.1225,63185.0,63172.0,0.000822]
[1724708684915,0.474931,63167.0,63147.0,0.04754127]
[1724708685106,1.11190199,63167.0,63136.0,0.04754127]
[1724708685320,1.21910221,63167.0,63148.0,0.00688298]
[1724708685578,1.59338141,63167.0,63148.0,0.00688298]
[1724708685707,0.158355,63149.0,63148.0,0.00688298]
[1724708685925,0.158361,63147.0,63141.0,0.11092921]
[1724708686126,0.1051,63149.0,63142.0,0.15617801]
[1724708686324,0.263456,63149.0,63142.0,0.15617801]
[1724708686859,0.158359,63148.0,63142.0,0.15617801]
[1724708687477,0.158361,63147.0,63142.0,0.15617801]
[1724708687654,0.158363,63146.0,63142.0,0.15617801]
[1724708689524,0.158366,63145.0,63142.0,0.15717801]
[1724708689952,0.158366,63145.0,63142.0,0.15817801]
[1724708690428,0.158366,63145.0,63142.0,0.15717801]
[1724708690639,0.158368,63144.0,63142.0,0.15917801]
[1724708690856,0.158368,63144.0,63142.0,0.15817801]
[1724708691032,0.1051,63149.0,63142.0,0.005]
[1724708691033,0.15837,63143.0,63142.0,0.005]
[1724708691242,0.475111,63143.0,63142.0,0.005]
[1724708691457,0.581411,63143.0,63142.0,0.005]
[1724708691881,0.581411,63143.0,63142.0,0.002]
[1724708692081,0.158375,63141.0,63140.0,0.000823]
[1724708692731,0.475126,63141.0,63140.0,0.000823]
[1724708693823,0.791877,63141.0,63140.0,0.000823]
[1724708694017,0.792877,63141.0,63140.0,0.007823]
[1724708694754,0.793877,63141.0,63140.0,0.014823]
[1724708698077,0.793877,63141.0,63140.0,0.015823]
[1724708698279,0.793877,63141.0,63140.0,0.016823]
[1724708698692,1.32785721,63141.0,63140.0,0.014823]
[1724708699102,1.32785721,63141.0,63128.0,0.4732]
[1724708699103,0.158405,63129.0,63128.0,0.4732]
[1724708699364,0.581516,63129.0,63128.0,0.004]
[1724708699689,0.898327,63129.0,63128.0,0.004]
[1724708700862,0.899327,63129.0,63128.0,0.017]
[1724708701444,0.900327,63129.0,63128.0,0.03]
[1724708703183,0.899327,63129.0,63128.0,0.017]
[1724708704155,0.899327,63129.0,63128.0,0.004]
[1724708704156,0.898327,63129.0,63128.0,0.004]
[1724708704393,0.898327,63129.0,63128.0,0.005]
[1724708704394,0.581516,63129.0,63128.0,0.005]
[1724708704604,0.596516,63129.0,63128.0,0.006]
[1724708704888,0.589516,63129.0,63128.0,0.004]
[1724708705102,0.597516,63129.0,63128.0,0.005]
[1724708705902,0.705716,63129.0,63128.0,0.006]
[1724708706489,0.1293,63129.0,63128.0,0.006]
[1724708706729,0.023,63129.0,63128.0,0.006]
[1724708709499,0.023,63129.0,63128.0,0.005824]
[1724708709795,0.023,63129.0,63128.0,0.006824]
[1724708710195,0.023,63129.0,63128.0,0.31741001]
[1724708710396,0.023,63129.0,63128.0,0.16000201]
[1724708710641,0.023,63129.0,63128.0,0.16300201]
[1724708711141,0.023,63129.0,63128.0,0.32141001]
[1724708711337,0.02280944,63129.0,63128.0,0.32141001]
[1724708711701,0.02280944,63129.0,63128.0,0.63822601]
[1724708711911,0.02280944,63129.0,63128.0,0.32141001]
[1724708713857,0.02280944,63129.0,63128.0,0.95504201]
[1724708714239,0.02280944,63129.0,63128.0,0.31841001]
[1724708714446,0.02280944,63129.0,63128.0,0.31741001]
[1724708714748,0.02280944,63129.0,63128.0,0.63422601]
[1724708717451,0.02280944,63129.0,63120.0,0.416852]
[1724708717452,0.792115,63122.0,63100.0,0.316952]
[1724708717651,1.03764421,63122.0,63100.0,0.11092921]
[1724708717883,1.03764421,63122.0,63104.0,0.003]
[1724708718169,0.792202,63115.0,63104.0,0.003]
[1724708718370,0.792202,63115.0,63106.0,0.001]
[1724708718598,0.792202,63115.0,63106.0,0.003]
[1724708718599,0.893402,63115.0,63106.0,0.003]
[1724708718842,0.893402,63115.0,63104.0,0.003]
[1724708719055,0.893402,63115.0,63104.0,0.158468]
[1724708719242,0.893402,63115.0,63102.0,0.166712]
[1724708719411,0.893402,63115.0,63103.0,0.11092921]
[1724708719614,0.893402,63115.0,63102.0,0.00824]
[1724708719815,1.00433121,63115.0,63102.0,0.00824]
[1724708720292,1.210283,63115.0,63107.0,0.003]
[1724708720709,1.210283,63115.0,63114.0,0.01024]
[1724708721110,1.210283,63115.0,63114.0,0.00824]
[1724708721324,0.893402,63115.0,63114.0,0.00824]
[1724708721512,0.902402,63115.0,63114.0,0.00824]
[1724708721644,0.913402,63115.0,63114.0,0.00824]
[1724708722870,0.812202,63115.0,63114.0,0.00824]
[1724708723157,0.495321,63115.0,63114.0,0.00824]
[1724708723367,0.17844,63115.0,63114.0,0.00824]
[1724708723566,0.02,63115.0,63114.0,0.16524]
[1724708724026,0.17844,63115.0,63114.0,0.16524]
[1724708724606,0.02,63115.0,63114.0,0.16524]
[1724708725218,0.02,63115.0,63114.0,0.32141801]
[1724708725444,0.02,63115.0,63114.0,0.79674701]
[1724708727158,0.02,63115.0,63114.0,0.47986101]
[1724708727382,0.02,63115.0,63114.0,0.48535676]
[1724708728190,0.02,63115.0,63114.0,0.80224276]
[1724708729132,0.02,63115.0,63114.0,0.48535676]
[1724708729514,0.02,63115.0,63114.0,0.80224276]
[1724708729712,0.02,63115.0,63114.0,0.48535676]
[1724708730687,0.02,63115.0,63114.0,0.80224276]
[1724708730910,0.02,63115.0,63114.0,0.48535676]
[1724708731408,0.02,63115.0,63114.0,0.80224276]
[1724708732428,0.02,63115.0,63114.0,0.48535676]
[1724708738423,0.02,63115.0,63114.0,0.80224276]
[1724708738651,0.02,63115.0,63114.0,0.48535676]
[1724708745327,0.02,63115.0,63114.0,0.01373575]
[1724708746573,0.02,63115.0,63114.0,0.17373575]
[1724708748398,0.02,63115.0,63114.0,0.33217875]
[1724708749534,0.02,63115.0,63114.0,0.80524276]
[1724708750215,0.02,63115.0,63114.0,1.12212876]
[1724708752933,0.01980932,63115.0,63114.0,1.12212876]
[1724708765739,0.01980932,63115.0,63114.0,1.56651476]
[1724708766798,0.00880932,63115.0,63114.0,1.56651476]
[1724708767394,0.01280932,63115.0,63114.0,1.56651476]
[1724708767899,0.004,63115.0,63114.0,1.56651476]
[1724708768244,0.008,63115.0,63114.0,1.56651476]
[1724708768652,0.004,63115.0,63114.0,1.56651476]
[1724708769054,0.007,63115.0,63114.0,1.56651476]
[1724708770542,0.007,63115.0,63114.0,1.67771955]
[1724708772364,0.007,63115.0,63114.0,1.77871955]
[1724708774258,0.007,63115.0,63114.0,2.09560555]
[1724708777030,0.006,63115.0,63114.0,2.09560555]
[1724708777407,0.006,63115.0,63114.0,2.11860555]
[1724708780299,0.003,63115.0,63114.0,2.11860555]
[1724708780505,0.00090751,63121.0,63120.0,1.274996]
[1724708780710,0.00090751,63121.0,63120.0,1.6423788]
[1724708784021,0.00090751,63121.0,63120.0,1.6443788]
[1724708784645,0.00090751,63121.0,63120.0,1.9842348]
[1724708788966,0.00090751,63121.0,63120.0,2.1177348]
[1724708790596,0.00090751,63121.0,63120.0,2.4345908]
[1724708791576,0.00090751,63121.0,63120.0,2.4325908]
[1724708791726,0.00290751,63121.0,63120.0,2.4395908]
[1724708794632,0.00090751,63129.0,63128.0,1.724972]
[1724708794764,0.00090751,63129.0,63128.0,2.1153548]
[1724708796402,0.00190751,63129.0,63128.0,2.1153548]
[1724708796969,0.00290751,63129.0,63128.0,2.1233548]
[1724708801091,0.00290751,63129.0,63128.0,2.1286488]
[1724708804335,0.04924807,63143.0,63139.0,1.38746779]
[1724708804510,0.04924807,63143.0,63139.0,1.6666458]
[1724708804750,0.1299,63147.0,63139.0,1.6666458]
[1724708805546,0.0049064,63140.0,63139.0,1.6666458]
[1724708806568,0.0079064,63140.0,63139.0,1.9834068]
[1724708807668,0.0049064,63140.0,63139.0,1.9834068]
[1724708808082,0.0049064,63140.0,63139.0,1.9864068]
[1724708808486,0.0009064,63140.0,63139.0,1.9864068]
[1724708809210,0.0009064,63140.0,63139.0,1.9874068]
[1724708811381,0.0009064,63140.0,63139.0,1.99270923]
[1724708815259,0.0009064,63140.0,63139.0,1.71490444]
[1724708815442,0.0009064,63140.0,63139.0,1.82610923]
[1724708832380,0.0009064,63140.0,63139.0,1.82629988]
[1724708841693,0.0009064,63140.0,63139.0,1.97899988]
[1724708843709,0.0009064,63140.0,63139.0,1.97880923]
[1724708850037,0.0009064,63140.0,63139.0,2.06986687]
[1724708850251,0.0009064,63140.0,63139.0,2.07005752]
[1724708854839,0.2208064,63140.0,63139.0,1.82629988]
[1724708855445,0.1260064,63140.0,63139.0,1.82629988]
[1724708861706,0.1260064,63140.0,63139.0,1.82610923]
[1724708864692,0.0009064,63140.0,63139.0,1.82610923]
[1724708868043,0.0009064,63140.0,63139.0,1.82629988]
[1724708874415,0.0009064,63140.0,63139.0,1.21837309]
[1724708874618,0.1297064,63140.0,63139.0,1.16877788]
[1724708879603,0.1297064,63140.0,63139.0,1.16858723]
[1724708884760,0.0009064,63140.0,63139.0,1.16858723]
[1724708885627,0.0009064,63140.0,63139.0,1.48534823]
[1724708886036,0.0009064,63140.0,63139.0,1.48553888]
[1724708886776,0.0009064,63140.0,63139.0,1.63763888]
[1724708889439,0.0009064,63140.0,63139.0,2.10759988]
[1724708891608,0.0009064,63140.0,63139.0,2.42436088]
[1724708892067,0.0009064,63140.0,63139.0,2.42136088]
[1724708892315,0.1206,63156.0,63153.0,0.001]
[1724708892539,0.1206,63156.0,63155.0,0.475021]
[1724708892794,0.1206,63156.0,63155.0,1.26456101]
[1724708894309,0.1206,63156.0,63155.0,1.26556101]
[1724708894508,0.1276,63156.0,63155.0,1.26556101]
[1724708894717,0.1396,63156.0,63155.0,1.26556101]
[1724708895157,0.1276,63156.0,63155.0,1.26556101]
[1724708895369,0.1276,63156.0,63155.0,1.27088154]
[1724708895572,0.1396,63156.0,63155.0,1.27188154]
[1724708898780,0.019,63156.0,63155.0,1.42398154]
[1724708899024,0.019,63156.0,63155.0,1.52398154]
[1724708899231,0.019,63156.0,63155.0,1.52498154]
[1724708899467,0.019,63156.0,63155.0,1.54798154]
[1724708899819,0.0199064,63156.0,63155.0,1.67718154]
[1724708900026,0.0129064,63156.0,63155.0,1.67618154]
[1724708900203,0.0179064,63156.0,63155.0,1.67618154]
[1724708901570,0.0059064,63156.0,63155.0,1.67518154]
[1724708901991,0.0109064,63156.0,63155.0,1.67518154]
[1724708902164,0.0109064,63156.0,63155.0,1.65218154]
[1724708902594,0.0109064,63156.0,63155.0,1.67518154]
[1724708903954,0.0059064,63156.0,63155.0,1.67518154]
[1724708904363,0.0059064,63156.0,63155.0,1.67818154]
[1724708904578,0.0059064,63156.0,63155.0,1.99486254]
[1724708905198,0.0009064,63156.0,63155.0,1.99486254]
[1724708905373,0.0009064,63156.0,63155.0,1.99886254]
[1724708908903,0.0009064,63156.0,63155.0,2.31554354]
[1724708909137,0.0009064,63167.0,63166.0,1.109191]
[1724708909338,0.0009064,63167.0,63166.0,1.7788738]
[1724708910545,0.0029064,63167.0,63166.0,1.7788738]
[1724708911940,0.0029064,63167.0,63166.0,1.66766901]
[1724708912179,0.0049064,63167.0,63166.0,2.0954998]
[1724708912385,0.1323,63178.0,63166.0,2.0954998]
[1724708912586,0.1323,63178.0,63177.0,0.90262979]
[1724708912790,0.1323,63178.0,63177.0,1.0588078]
[1724708914067,0.00906401,63179.0,63178.0,0.791412]
[1724708914369,0.00906401,63179.0,63178.0,0.63102501]
[1724708914814,0.00906401,63179.0,63178.0,0.7422298]
[1724708915191,0.00906401,63179.0,63178.0,1.0587948]
[1724708915411,0.00906401,63179.0,63178.0,0.94759001]
[1724708915616,0.00906401,63179.0,63178.0,1.0587948]
[1724708916704,0.01006401,63179.0,63178.0,1.0587948]
[1724708916876,0.01406401,63179.0,63178.0,1.0587948]
[1724708918752,0.01406401,63179.0,63178.0,1.5257598]
[1724708921531,0.01406401,63179.0,63178.0,1.6257598]
[1724708923614,0.01306401,63179.0,63178.0,1.6257598]
[1724708924047,0.23076401,63179.0,63178.0,1.04759001]
[1724708924249,0.23076401,63179.0,63178.0,0.25617801]
[1724708924429,0.23076401,63179.0,63178.0,0.15617801]
[1724708924631,0.38904401,63179.0,63178.0,0.15617801]
[1724708924836,0.70160401,63179.0,63178.0,0.15617801]
[1724708925043,0.22676401,63179.0,63178.0,0.15717801]
[1724708925461,0.22676401,63179.0,63178.0,0.15817801]
[1724708926878,0.22676401,63179.0,63178.0,0.31646001]
[1724708927354,0.22676401,63179.0,63178.0,0.15817801]
[1724708927951,0.22676401,63179.0,63178.0,0.15717801]
[1724708928146,0.22876401,63179.0,63178.0,0.15717801]
[1724708928708,0.23076401,63179.0,63178.0,0.15717801]
[1724708929157,0.22676401,63179.0,63178.0,0.15717801]
[1724708929361,0.22676401,63179.0,63178.0,0.15617801]
[1724708929575,0.22876401,63179.0,63178.0,0.15617801]
[1724708929777,0.22776401,63179.0,63178.0,0.15617801]
[1724708930343,0.22676401,63179.0,63178.0,0.15617801]
[1724708930477,0.22776401,63179.0,63178.0,0.15617801]
[1724708931192,0.22876401,63179.0,63178.0,0.15617801]
[1724708938215,0.13486401,63179.0,63178.0,0.15617801]
[1724708939059,0.13486401,63179.0,63178.0,0.31446001]
[1724708941292,0.01006401,63179.0,63178.0,0.63102501]
[1724708942035,0.00906401,63179.0,63178.0,0.63502501]
[1724708942213,0.00906401,63179.0,63178.0,0.63802501]
[1724708942415,0.00906401,63179.0,63178.0,0.95459001]
[1724708953495,0.05612038,63179.0,63178.0,0.95459001]
[1724708957707,0.00906401,63179.0,63178.0,0.95459001]
[1724708958479,0.05612038,63179.0,63178.0,0.95459001]
[1724708958893,0.00906401,63179.0,63178.0,0.95459001]
[1724708959096,0.00906401,63179.0,63178.0,1.11069001]
[1724708959930,0.05612038,63179.0,63178.0,1.11069001]
[1724708960347,0.00906401,63179.0,63178.0,1.11069001]
[1724708960755,0.05612038,63179.0,63178.0,1.11069001]
[1724708961287,0.00906401,63179.0,63178.0,1.11069001]
[1724708961497,0.05612038,63179.0,63178.0,1.11069001]
[1724708962830,0.00906401,63179.0,63178.0,1.11069001]
[1724708963269,0.05612038,63179.0,63178.0,1.11069001]
[1724708963475,0.00906401,63179.0,63178.0,1.11069001]
[1724708966001,0.05612038,63179.0,63178.0,1.11069001]
[1724708970690,0.00906401,63179.0,63178.0,1.11069001]
[1724708971104,0.05612038,63179.0,63178.0,1.11069001]
[1724708972002,0.05614874,63179.0,63178.0,1.11069001]
[1724708972210,0.00906401,63179.0,63178.0,1.11069001]
[1724708979807,0.00906401,63179.0,63178.0,1.23529001]
[1724708980220,0.00906401,63179.0,63178.0,1.11069001]
[1724708981464,0.00906401,63179.0,63178.0,1.2218948]
[1724708987018,0.00906401,63179.0,63178.0,1.11069001]
[1724708987228,0.39184401,63179.0,63178.0,0.007]
[1724708987468,1.02496401,63179.0,63178.0,0.007]
[1724708988147,1.02496401,63179.0,63178.0,0.004]
[1724708988859,0.158292,63175.0,63168.0,0.258306]
[1724708989118,0.289093,63174.0,63169.0,0.15617801]
[1724708989586,0.158296,63173.0,63169.0,0.15617801]
[1724708989814,0.158256,63173.0,63169.0,0.15617801]
[1724708990216,0.158256,63173.0,63168.0,0.104]
[1724708990217,0.474915,63169.0,63168.0,0.104]
[1724708990376,0.474915,63169.0,63168.0,0.004]
[1724708991169,0.474924,63168.0,63167.0,0.000824]
[1724708992167,0.474924,63168.0,63167.0,0.011824]
[1724708992374,0.475924,63168.0,63167.0,0.021824]
[1724708992575,0.474924,63168.0,63167.0,0.011824]
[1724708992776,0.474924,63168.0,63167.0,0.000824]
[1724708993133,0.475924,63168.0,63167.0,0.007824]
[1724708993363,0.475924,63168.0,63167.0,0.013824]
[1724708993582,0.47573346,63168.0,63167.0,0.013824]
[1724708994176,0.60763346,63168.0,63167.0,0.013824]
[1724709004008,0.47565115,63168.0,63167.0,0.16355576]
[1724709004216,0.47565115,63168.0,63167.0,0.01165576]
[1724709004769,0.47565115,63168.0,63167.0,0.16355576]
[1724709006034,0.47565115,63168.0,63167.0,0.01165576]
[1724709008035,0.47565115,63168.0,63167.0,0.01247976]
[1724709009417,0.60205115,63168.0,63167.0,0.01247976]
[1724709019891,0.60295755,63168.0,63167.0,0.01247976]
[1724709022054,0.91957355,63168.0,63167.0,0.01247976]
[1724709023367,1.48805479,63168.0,63167.0,0.01247976]
[1724709023565,1.90967671,63168.0,63167.0,0.01247976]
[1724709023852,1.79227559,63168.0,63167.0,0.01247976]
[1724709024266,1.79127559,63168.0,63167.0,0.006824]
[1724709024473,1.69757559,63168.0,63167.0,0.000824]
[1724709024821,1.69857559,63168.0,63167.0,0.000824]
[1724709025252,1.79727559,63168.0,63167.0,0.001824]
[1724709025454,1.79127559,63168.0,63167.0,0.000824]
[1724709025629,1.79227559,63168.0,63167.0,0.000824]
[1724709025864,1.79827559,63168.0,63167.0,0.001824]